[Event "Titled Tuesday Blitz April 11 Early 2023"]
[White "Jimenez Jimenez, Leandro"]
[Black "Kozin, Yuri"]
[WhiteFideId "6415253"]
[BlackFideId "4129920"]
[WhiteElo "2263"]
[BlackElo "2553"]
[Result "0-1"]
[Round "09"]
[TimeControl "180+2"]
[Date "2023.04.11"]
[WhiteClock "0:00:07"]
[BlackClock "0:00:50"]

1. d4 {[%clk 0:03:00]}  d5 {[%clk 0:02:58]} 2. c4 {[%clk 0:03:01]}  c6 {[%clk 0:02:58]} 3. cxd5 {[%clk 0:03:01]}  cxd5 {[%clk 0:02:59]} 4. Nc3 {[%clk 0:03:02]}  Nf6 {[%clk 0:02:59]} 5. Nf3 {[%clk 0:03:02]}  Nc6 {[%clk 0:02:59]} 6. Bf4 {[%clk 0:03:03]}  Bg4 {[%clk 0:03:00]} 7. Ne5 {[%clk 0:02:59]}  Qb6 {[%clk 0:02:59]} 8. Nxg4 {[%clk 0:02:51]}  Nxg4 {[%clk 0:02:59]} 9. Nxd5 {[%clk 0:02:40]}  Qa5+ {[%clk 0:02:59]} 10. Nc3 {[%clk 0:02:40]}  e5 {[%clk 0:02:59]} 11. dxe5 {[%clk 0:02:32]}  Qb6 {[%clk 0:02:58]} 12. Bg3 {[%clk 0:01:29]}  Qxb2 {[%clk 0:02:53]} 13. Rc1 {[%clk 0:01:28]}  Bb4 {[%clk 0:02:34]} 14. Qd2 {[%clk 0:01:28]}  Qa3 {[%clk 0:02:01]} 15. h3 {[%clk 0:01:22]}  Rd8 {[%clk 0:01:55]} 16. Qc2 {[%clk 0:01:08]}  Nd4 {[%clk 0:01:53]} 17. Qd2 {[%clk 0:00:55]}  Nf3+ {[%clk 0:01:47]} 18. exf3 {[%clk 0:00:55]}  Rxd2 {[%clk 0:01:47]} 19. Kxd2 {[%clk 0:00:54]}  Qb2+ {[%clk 0:01:37]} 20. Kd1 {[%clk 0:00:17]}  Bxc3 {[%clk 0:01:29]} 21. Bb5+ {[%clk 0:00:15]}  Qxb5 {[%clk 0:01:24]} 22. Rxc3 {[%clk 0:00:15]}  Qb1+ {[%clk 0:01:19]} 23. Ke2 {[%clk 0:00:12]}  Qxh1 {[%clk 0:01:17]} 24. Rc8+ {[%clk 0:00:12]}  Kd7 {[%clk 0:01:17]} 25. Rxh8 {[%clk 0:00:12]}  Nh6 {[%clk 0:01:10]} 26. Rxh7 {[%clk 0:00:12]}  Nf5 {[%clk 0:01:10]} 27. f4 {[%clk 0:00:09]}  Qb1 {[%clk 0:01:05]} 28. Rh8 {[%clk 0:00:08]}  Qxa2+ {[%clk 0:01:03]} 29. Kf1 {[%clk 0:00:08]}  Qb1+ {[%clk 0:01:00]} 30. Ke2 {[%clk 0:00:08]}  Qe4+ {[%clk 0:00:54]} 31. Kf1 {[%clk 0:00:08]}  Qd3+ {[%clk 0:00:53]} 32. Kg1 {[%clk 0:00:08]}  Nxg3 {[%clk 0:00:52]} 33. fxg3 {[%clk 0:00:07]}  Qxg3 {[%clk 0:00:53]} 34. Rb8 {[%clk 0:00:06]}  Kc7 {[%clk 0:00:52]} 35. Re8 {[%clk 0:00:06]}  Qxf4 {[%clk 0:00:51]} 36. Re7+ {[%clk 0:00:07]}  Kc6 {[%clk 0:00:50]} 0-1


[Site "https://www.chess.com"]

[Event "Titled Tuesday Blitz April 11 Early 2023"]
[White "Horak, Martin"]
[Black "Omariev, Maksim"]
[WhiteFideId "367095"]
[BlackFideId "4193423"]
[WhiteElo "2091"]
[BlackElo "2454"]
[Result "0-1"]
[Round "09"]
[TimeControl "180+2"]
[Date "2023.04.11"]
[WhiteClock "0:00:01"]
[BlackClock "0:00:23"]

1. e4 {[%clk 0:03:00]}  c5 {[%clk 0:02:24]} 2. Nf3 {[%clk 0:02:59]}  d6 {[%clk 0:02:24]} 3. d4 {[%clk 0:02:59]}  cxd4 {[%clk 0:02:25]} 4. Nxd4 {[%clk 0:02:59]}  Nf6 {[%clk 0:02:26]} 5. Nc3 {[%clk 0:02:59]}  a6 {[%clk 0:02:27]} 6. Be2 {[%clk 0:02:59]}  e6 {[%clk 0:02:27]} 7. g4 {[%clk 0:02:56]}  Be7 {[%clk 0:02:28]} 8. g5 {[%clk 0:02:56]}  Nfd7 {[%clk 0:02:29]} 9. h4 {[%clk 0:02:56]}  b5 {[%clk 0:02:29]} 10. Qd3 {[%clk 0:02:38]}  Bb7 {[%clk 0:02:23]} 11. a3 {[%clk 0:02:32]}  Nc5 {[%clk 0:02:19]} 12. Qe3 {[%clk 0:02:25]}  Nc6 {[%clk 0:02:07]} 13. Rg1 {[%clk 0:02:12]}  Qb6 {[%clk 0:01:58]} 14. Nxc6 {[%clk 0:02:05]}  Qxc6 {[%clk 0:01:52]} 15. f3 {[%clk 0:01:44]}  Rc8 {[%clk 0:01:46]} 16. h5 {[%clk 0:01:42]}  g6 {[%clk 0:01:46]} 17. Qf4 {[%clk 0:01:25]}  Na4 {[%clk 0:01:31]} 18. Nxa4 {[%clk 0:01:17]}  bxa4 {[%clk 0:01:32]} 19. c4 {[%clk 0:00:56]}  Qb6 {[%clk 0:01:13]} 20. Qe3 {[%clk 0:00:55]}  Rc5 {[%clk 0:01:14]} 21. Qc3 {[%clk 0:00:52]}  O-O {[%clk 0:00:53]} 22. Be3 {[%clk 0:00:44]}  Rfc8 {[%clk 0:00:40]} 23. O-O-O {[%clk 0:00:27]}  d5 {[%clk 0:00:39]} 24. exd5 {[%clk 0:00:22]}  exd5 {[%clk 0:00:38]} 25. Kb1 {[%clk 0:00:15]}  Qe6 {[%clk 0:00:32]} 26. Bxc5 {[%clk 0:00:12]}  Bxc5 {[%clk 0:00:33]} 27. Rge1 {[%clk 0:00:09]}  d4 {[%clk 0:00:34]} 28. Qc2 {[%clk 0:00:09]}  Qe5 {[%clk 0:00:33]} 29. Bd3 {[%clk 0:00:08]}  Qxg5 {[%clk 0:00:33]} 30. hxg6 {[%clk 0:00:07]}  hxg6 {[%clk 0:00:34]} 31. Qxa4 {[%clk 0:00:07]}  Bxf3 {[%clk 0:00:32]} 32. Rc1 {[%clk 0:00:05]}  Rc6 {[%clk 0:00:28]} 33. Rf1 {[%clk 0:00:03]}  Qe3 {[%clk 0:00:24]} 34. Bc2 {[%clk 0:00:02]}  d3 {[%clk 0:00:24]} 35. Bb3 {[%clk 0:00:02]}  Re6 {[%clk 0:00:23]} 36. Bd1 {[%clk 0:00:01]}  d2 {[%clk 0:00:23]} 37. Rc3 {[%clk 0:00:01]}  Be4+ {[%clk 0:00:21]} 38. Ka2 {[%clk 0:00:01]}  Qe1 {[%clk 0:00:22]} 39. Rxe1 {[%clk 0:00:01]}  dxe1=Q {[%clk 0:00:23]} 0-1


[Site "https://www.chess.com"]

[Event "Titled Tuesday Blitz April 11 Early 2023"]
[White "Demin, Vladimir"]
[Black "Rottenwohrer Suarez, Juan"]
[WhiteFideId "4167457"]
[BlackFideId "32068182"]
[WhiteElo "2543"]
[BlackElo "2174"]
[Result "0-1"]
[Round "09"]
[TimeControl "180+2"]
[Date "2023.04.11"]
[WhiteClock "0:00:38"]
[BlackClock "0:00:59"]

1. e4 {[%clk 0:03:00]}  c5 {[%clk 0:02:22]} 2. Nf3 {[%clk 0:03:00]}  g6 {[%clk 0:02:21]} 3. c3 {[%clk 0:02:58]}  d5 {[%clk 0:02:21]} 4. exd5 {[%clk 0:02:57]}  Qxd5 {[%clk 0:02:20]} 5. d4 {[%clk 0:02:58]}  Bg7 {[%clk 0:02:21]} 6. Be2 {[%clk 0:02:57]}  Nf6 {[%clk 0:02:16]} 7. O-O {[%clk 0:02:57]}  cxd4 {[%clk 0:02:14]} 8. Qxd4 {[%clk 0:02:55]}  Nc6 {[%clk 0:02:11]} 9. Qa4 {[%clk 0:02:53]}  O-O {[%clk 0:02:11]} 10. Rd1 {[%clk 0:02:52]}  Qa5 {[%clk 0:02:07]} 11. Qxa5 {[%clk 0:02:49]}  Nxa5 {[%clk 0:02:08]} 12. Na3 {[%clk 0:02:47]}  a6 {[%clk 0:02:05]} 13. h3 {[%clk 0:02:46]}  Bf5 {[%clk 0:02:03]} 14. Be3 {[%clk 0:02:46]}  b5 {[%clk 0:01:54]} 15. Nd4 {[%clk 0:02:42]}  Bd7 {[%clk 0:01:51]} 16. Nac2 {[%clk 0:02:41]}  Rac8 {[%clk 0:01:48]} 17. a4 {[%clk 0:02:38]}  Nc4 {[%clk 0:01:43]} 18. axb5 {[%clk 0:02:36]}  axb5 {[%clk 0:01:40]} 19. Bc1 {[%clk 0:02:34]}  Rfd8 {[%clk 0:01:29]} 20. b3 {[%clk 0:02:18]}  Nd6 {[%clk 0:01:25]} 21. Bb2 {[%clk 0:02:17]}  Nfe4 {[%clk 0:01:23]} 22. Rd3 {[%clk 0:02:03]}  Nc5 {[%clk 0:01:22]} 23. Re3 {[%clk 0:01:59]}  e5 {[%clk 0:01:21]} 24. Nf3 {[%clk 0:01:56]}  Nf5 {[%clk 0:01:16]} 25. Rxe5 {[%clk 0:01:56]}  Bxe5 {[%clk 0:01:15]} 26. Nxe5 {[%clk 0:01:57]}  Nxb3 {[%clk 0:01:16]} 27. Ra7 {[%clk 0:01:53]}  Be6 {[%clk 0:01:13]} 28. Bxb5 {[%clk 0:01:46]}  Rd2 {[%clk 0:01:13]} 29. Bd3 {[%clk 0:00:53]}  Nc5 {[%clk 0:01:07]} 30. c4 {[%clk 0:00:39]}  Nxd3 {[%clk 0:01:02]} 31. Nxd3 {[%clk 0:00:39]}  Rxd3 {[%clk 0:01:02]} 32. c5 {[%clk 0:00:38]}  Rd2 {[%clk 0:00:59]} 0-1


[Site "https://www.chess.com"]

[Event "Titled Tuesday Blitz April 11 Early 2023"]
[White "Harriott, Tyrell"]
[Black "Ljukin, Sergei"]
[WhiteFideId "2086484"]
[BlackFideId "14102200"]
[WhiteElo "2107"]
[BlackElo "2312"]
[Result "1-0"]
[Round "09"]
[TimeControl "180+2"]
[Date "2023.04.11"]
[WhiteClock "0:00:23"]
[BlackClock "0:00:03"]

1. d4 {[%clk 0:03:00]}  d5 {[%clk 0:02:57]} 2. e3 {[%clk 0:03:01]}  Nf6 {[%clk 0:02:57]} 3. Bd3 {[%clk 0:03:00]}  c5 {[%clk 0:02:57]} 4. c3 {[%clk 0:03:01]}  Nc6 {[%clk 0:02:58]} 5. f4 {[%clk 0:03:01]}  Bg4 {[%clk 0:02:57]} 6. Ne2 {[%clk 0:03:01]}  e6 {[%clk 0:02:58]} 7. Nd2 {[%clk 0:03:00]}  Be7 {[%clk 0:02:56]} 8. O-O {[%clk 0:03:00]}  O-O {[%clk 0:02:56]} 9. Nf3 {[%clk 0:03:00]}  Bf5 {[%clk 0:02:54]} 10. Ng3 {[%clk 0:02:59]}  Bxd3 {[%clk 0:02:53]} 11. Qxd3 {[%clk 0:02:59]}  Qc7 {[%clk 0:02:52]} 12. Ne5 {[%clk 0:02:57]}  a6 {[%clk 0:02:49]} 13. b3 {[%clk 0:02:53]}  b5 {[%clk 0:02:48]} 14. Bd2 {[%clk 0:02:50]}  Rfc8 {[%clk 0:02:36]} 15. Rac1 {[%clk 0:02:48]}  c4 {[%clk 0:01:52]} 16. Qb1 {[%clk 0:02:42]}  Rcb8 {[%clk 0:01:47]} 17. e4 {[%clk 0:02:38]}  a5 {[%clk 0:01:35]} 18. Nxc6 {[%clk 0:02:37]}  Qxc6 {[%clk 0:01:34]} 19. e5 {[%clk 0:02:37]}  Nd7 {[%clk 0:01:31]} 20. f5 {[%clk 0:02:37]}  exf5 {[%clk 0:01:26]} 21. Qxf5 {[%clk 0:02:36]}  Qe6 {[%clk 0:01:25]} 22. Qf3 {[%clk 0:02:26]}  g6 {[%clk 0:01:22]} 23. Ne2 {[%clk 0:02:19]}  Nb6 {[%clk 0:01:15]} 24. Nf4 {[%clk 0:02:18]}  Qf5 {[%clk 0:01:12]} 25. Nxd5 {[%clk 0:02:09]}  Qxf3 {[%clk 0:01:12]} 26. Nxe7+ {[%clk 0:02:08]}  Kf8 {[%clk 0:01:13]} 27. Nxg6+ {[%clk 0:02:08]}  hxg6 {[%clk 0:01:12]} 28. Rxf3 {[%clk 0:02:03]}  Nd5 {[%clk 0:01:12]} 29. e6 {[%clk 0:02:02]}  f5 {[%clk 0:01:11]} 30. g4 {[%clk 0:02:02]}  Ke7 {[%clk 0:01:08]} 31. gxf5 {[%clk 0:02:02]}  gxf5 {[%clk 0:01:08]} 32. Rxf5 {[%clk 0:02:02]}  Kxe6 {[%clk 0:01:08]} 33. Re5+ {[%clk 0:02:01]}  Kd6 {[%clk 0:01:07]} 34. Rce1 {[%clk 0:01:59]}  Rg8+ {[%clk 0:01:02]} 35. Kh1 {[%clk 0:01:58]}  Rg6 {[%clk 0:01:02]} 36. Re8 {[%clk 0:01:50]}  Rxe8 {[%clk 0:00:32]} 37. Rxe8 {[%clk 0:01:51]}  Kd7 {[%clk 0:00:32]} 38. Re5 {[%clk 0:01:43]}  Kd6 {[%clk 0:00:31]} 39. Re2 {[%clk 0:01:23]}  b4 {[%clk 0:00:26]} 40. bxc4 {[%clk 0:01:22]}  bxc3 {[%clk 0:00:23]} 41. Bc1 {[%clk 0:01:15]}  Nb4 {[%clk 0:00:20]} 42. Ba3 {[%clk 0:01:04]}  Rg4 {[%clk 0:00:17]} 43. Re3 {[%clk 0:00:48]}  Rxd4 {[%clk 0:00:11]} 44. Rxc3 {[%clk 0:00:48]}  Rd2 {[%clk 0:00:11]} 45. c5+ {[%clk 0:00:43]}  Kc6 {[%clk 0:00:11]} 46. h4 {[%clk 0:00:30]}  Nxa2 {[%clk 0:00:08]} 47. Rh3 {[%clk 0:00:26]}  Rd7 {[%clk 0:00:07]} 48. h5 {[%clk 0:00:25]}  Rh7 {[%clk 0:00:07]} 49. h6 {[%clk 0:00:25]}  Nb4 {[%clk 0:00:06]} 50. Kg2 {[%clk 0:00:25]}  Kxc5 {[%clk 0:00:07]} 51. Kg3 {[%clk 0:00:23]}  Kd5 {[%clk 0:00:03]} 52. Kg4 {[%clk 0:00:23]} 1-0


[Site "https://www.chess.com"]

[Event "Titled Tuesday Blitz April 11 Early 2023"]
[White "egorchess95"]
[Black "Valle Maytin, Luis Enrique"]
[BlackFideId "3503666"]
[WhiteElo "2539"]
[BlackElo "2225"]
[Result "1-0"]
[Round "09"]
[TimeControl "180+2"]
[Date "2023.04.11"]
[WhiteClock "0:01:07"]
[BlackClock "0:00:26"]

1. Nf3 {[%clk 0:03:00]}  d5 {[%clk 0:02:57]} 2. b3 {[%clk 0:03:01]}  Nf6 {[%clk 0:02:53]} 3. e3 {[%clk 0:03:00]}  Bf5 {[%clk 0:02:53]} 4. Bb2 {[%clk 0:02:58]}  e6 {[%clk 0:02:50]} 5. c4 {[%clk 0:02:59]}  c6 {[%clk 0:02:50]} 6. Be2 {[%clk 0:02:56]}  Nbd7 {[%clk 0:02:50]} 7. O-O {[%clk 0:02:56]}  Bd6 {[%clk 0:02:49]} 8. Nc3 {[%clk 0:02:56]}  O-O {[%clk 0:02:48]} 9. d4 {[%clk 0:02:57]}  Qe7 {[%clk 0:02:44]} 10. a3 {[%clk 0:02:53]}  Rad8 {[%clk 0:02:43]} 11. Nb1 {[%clk 0:02:47]}  Bb8 {[%clk 0:02:40]} 12. Nbd2 {[%clk 0:02:40]}  Rfe8 {[%clk 0:02:40]} 13. cxd5 {[%clk 0:02:33]}  exd5 {[%clk 0:02:37]} 14. b4 {[%clk 0:02:33]}  a6 {[%clk 0:02:36]} 15. Nb3 {[%clk 0:02:33]}  Ne4 {[%clk 0:02:34]} 16. Nc5 {[%clk 0:02:28]}  Ndxc5 {[%clk 0:02:31]} 17. bxc5 {[%clk 0:02:27]}  Qc7 {[%clk 0:02:31]} 18. g3 {[%clk 0:02:03]}  f6 {[%clk 0:02:20]} 19. Nh4 {[%clk 0:02:01]}  Bh3 {[%clk 0:02:18]} 20. Re1 {[%clk 0:02:01]}  g5 {[%clk 0:02:18]} 21. Bg4 {[%clk 0:01:56]}  gxh4 {[%clk 0:02:04]} 22. Bxh3 {[%clk 0:01:57]}  hxg3 {[%clk 0:02:04]} 23. hxg3 {[%clk 0:01:57]}  Kh8 {[%clk 0:02:03]} 24. Bg2 {[%clk 0:01:47]}  Nxf2 {[%clk 0:02:01]} 25. Kxf2 {[%clk 0:01:42]}  Qxg3+ {[%clk 0:02:01]} 26. Kf1 {[%clk 0:01:43]}  Rxe3 {[%clk 0:01:54]} 27. Rxe3 {[%clk 0:01:42]}  Qxe3 {[%clk 0:01:54]} 28. Qf3 {[%clk 0:01:43]}  Qg5 {[%clk 0:01:45]} 29. Re1 {[%clk 0:01:39]}  Rg8 {[%clk 0:01:39]} 30. Bc1 {[%clk 0:01:16]}  Qh4 {[%clk 0:01:38]} 31. Re6 {[%clk 0:01:11]}  Qxd4 {[%clk 0:01:23]} 32. Qxf6+ {[%clk 0:01:10]}  Qxf6+ {[%clk 0:01:15]} 33. Rxf6 {[%clk 0:01:11]}  Ba7 {[%clk 0:00:47]} 34. Bb2 {[%clk 0:01:09]}  Kg7 {[%clk 0:00:30]} 35. Rxc6+ {[%clk 0:01:08]}  Kf7 {[%clk 0:00:26]} 36. Bxd5+ {[%clk 0:01:07]} 1-0


[Site "https://www.chess.com"]

[Event "Titled Tuesday Blitz April 11 Early 2023"]
[White "Trifan, Andrei Ioan"]
[Black "Haub, Thorsten Michael"]
[WhiteFideId "12967068"]
[BlackFideId "4610776"]
[WhiteElo "2208"]
[BlackElo "2344"]
[Result "0-1"]
[Round "09"]
[TimeControl "180+2"]
[Date "2023.04.11"]
[WhiteClock "0:00:13"]
[BlackClock "0:00:20"]

1. e4 {[%clk 0:03:00]}  g6 {[%clk 0:03:00]} 2. d4 {[%clk 0:02:58]}  Bg7 {[%clk 0:03:01]} 3. Nc3 {[%clk 0:02:58]}  d6 {[%clk 0:03:01]} 4. Be3 {[%clk 0:02:55]}  a6 {[%clk 0:03:00]} 5. f3 {[%clk 0:02:55]}  Nd7 {[%clk 0:03:00]} 6. Qd2 {[%clk 0:02:52]}  h6 {[%clk 0:03:00]} 7. Bd3 {[%clk 0:02:52]}  e5 {[%clk 0:02:59]} 8. Nge2 {[%clk 0:02:50]}  Ngf6 {[%clk 0:02:58]} 9. h4 {[%clk 0:02:46]}  b5 {[%clk 0:02:53]} 10. a3 {[%clk 0:02:46]}  Qe7 {[%clk 0:02:48]} 11. d5 {[%clk 0:02:41]}  Nc5 {[%clk 0:02:45]} 12. b4 {[%clk 0:02:32]}  Nxd3+ {[%clk 0:02:42]} 13. cxd3 {[%clk 0:02:33]}  Bb7 {[%clk 0:02:32]} 14. d4 {[%clk 0:02:31]}  Nd7 {[%clk 0:02:26]} 15. f4 {[%clk 0:02:21]}  exf4 {[%clk 0:02:23]} 16. Bxf4 {[%clk 0:02:14]}  Nf6 {[%clk 0:02:23]} 17. Qd3 {[%clk 0:02:09]}  O-O {[%clk 0:02:21]} 18. O-O {[%clk 0:02:05]}  c6 {[%clk 0:02:07]} 19. dxc6 {[%clk 0:02:02]}  Bxc6 {[%clk 0:02:08]} 20. Ng3 {[%clk 0:01:45]}  Rac8 {[%clk 0:01:57]} 21. h5 {[%clk 0:01:43]}  Ng4 {[%clk 0:01:46]} 22. hxg6 {[%clk 0:01:27]}  fxg6 {[%clk 0:01:44]} 23. Nge2 {[%clk 0:01:26]}  Rce8 {[%clk 0:01:38]} 24. d5 {[%clk 0:01:16]}  Bd7 {[%clk 0:01:36]} 25. Nd4 {[%clk 0:01:10]}  Rxf4 {[%clk 0:01:12]} 26. Rxf4 {[%clk 0:01:11]}  Qe5 {[%clk 0:01:11]} 27. Nce2 {[%clk 0:00:59]}  g5 {[%clk 0:01:10]} 28. Rf3 {[%clk 0:00:29]}  Qh2+ {[%clk 0:01:02]} 29. Kf1 {[%clk 0:00:29]}  Qh1+ {[%clk 0:00:52]} 30. Ng1 {[%clk 0:00:24]}  Nh2+ {[%clk 0:00:51]} 31. Kf2 {[%clk 0:00:24]}  Nxf3 {[%clk 0:00:48]} 32. gxf3 {[%clk 0:00:24]}  Qh2+ {[%clk 0:00:47]} 33. Kf1 {[%clk 0:00:20]}  Rf8 {[%clk 0:00:39]} 34. Rd1 {[%clk 0:00:18]}  Bh3+ {[%clk 0:00:27]} 35. Nxh3 {[%clk 0:00:18]}  Qxh3+ {[%clk 0:00:27]} 36. Ke1 {[%clk 0:00:18]}  Bxd4 {[%clk 0:00:25]} 37. Qxd4 {[%clk 0:00:18]}  Rxf3 {[%clk 0:00:24]} 38. Kd2 {[%clk 0:00:18]}  Rxa3 {[%clk 0:00:24]} 39. Rf1 {[%clk 0:00:16]}  Qxf1 {[%clk 0:00:22]} 40. Qb6 {[%clk 0:00:13]}  Qg2+ {[%clk 0:00:20]} 0-1


[Site "https://www.chess.com"]

[Event "Titled Tuesday Blitz April 11 Early 2023"]
[White "Krsnik Cohar, Ivan Vihor"]
[Black "Vivas Zamora, Fabian Ernesto"]
[WhiteFideId "14520044"]
[BlackFideId "3902480"]
[WhiteElo "2414"]
[BlackElo "2262"]
[Result "1-0"]
[Round "09"]
[TimeControl "180+2"]
[Date "2023.04.11"]
[WhiteClock "0:00:07"]
[BlackClock "0:00:02"]

1. d4 {[%clk 0:02:44]}  Nf6 {[%clk 0:02:59]} 2. Bg5 {[%clk 0:02:44]}  d5 {[%clk 0:02:59]} 3. Nd2 {[%clk 0:02:44]}  c5 {[%clk 0:02:56]} 4. e3 {[%clk 0:02:28]}  Nc6 {[%clk 0:02:54]} 5. c3 {[%clk 0:02:28]}  e5 {[%clk 0:02:37]} 6. dxe5 {[%clk 0:02:29]}  Nxe5 {[%clk 0:02:36]} 7. Ngf3 {[%clk 0:01:25]}  Nc6 {[%clk 0:02:21]} 8. Bd3 {[%clk 0:00:55]}  Be7 {[%clk 0:02:20]} 9. O-O {[%clk 0:00:53]}  O-O {[%clk 0:02:20]} 10. Qe2 {[%clk 0:00:53]}  Bg4 {[%clk 0:01:52]} 11. h3 {[%clk 0:00:50]}  Bh5 {[%clk 0:01:50]} 12. Rad1 {[%clk 0:00:49]}  Ne5 {[%clk 0:01:27]} 13. Bb1 {[%clk 0:00:32]}  Re8 {[%clk 0:01:01]} 14. g4 {[%clk 0:00:31]}  Nexg4 {[%clk 0:00:20]} 15. hxg4 {[%clk 0:00:26]}  Nxg4 {[%clk 0:00:16]} 16. Bf4 {[%clk 0:00:24]}  Bd6 {[%clk 0:00:13]} 17. Bxd6 {[%clk 0:00:16]}  Qxd6 {[%clk 0:00:14]} 18. Kg2 {[%clk 0:00:16]}  Qg6 {[%clk 0:00:13]} 19. Bxg6 {[%clk 0:00:15]}  hxg6 {[%clk 0:00:12]} 20. Rh1 {[%clk 0:00:15]}  d4 {[%clk 0:00:11]} 21. cxd4 {[%clk 0:00:15]}  cxd4 {[%clk 0:00:12]} 22. Rxh5 {[%clk 0:00:12]}  gxh5 {[%clk 0:00:11]} 23. Nxd4 {[%clk 0:00:12]}  Rad8 {[%clk 0:00:10]} 24. N2f3 {[%clk 0:00:12]}  Rd6 {[%clk 0:00:10]} 25. Qb5 {[%clk 0:00:12]}  Red8 {[%clk 0:00:09]} 26. Qxh5 {[%clk 0:00:11]}  Rg6 {[%clk 0:00:08]} 27. Kf1 {[%clk 0:00:11]}  Rc8 {[%clk 0:00:04]} 28. Ke2 {[%clk 0:00:11]}  Nf6 {[%clk 0:00:04]} 29. Qf5 {[%clk 0:00:10]}  Rd8 {[%clk 0:00:03]} 30. Ne5 {[%clk 0:00:09]}  Rh6 {[%clk 0:00:03]} 31. Rg1 {[%clk 0:00:09]}  Nd5 {[%clk 0:00:02]} 32. Qxf7+ {[%clk 0:00:06]}  Kh7 {[%clk 0:00:02]} 33. Qxg7# {[%clk 0:00:07]} 1-0


[Site "https://www.chess.com"]

[Event "Titled Tuesday Blitz April 11 Early 2023"]
[White "Mrudul Dehankar"]
[Black "Francisco Guecamburu, Candela Be"]
[WhiteFideId "25096990"]
[BlackFideId "160911"]
[WhiteElo "2139"]
[BlackElo "2326"]
[Result "0-1"]
[Round "09"]
[TimeControl "180+2"]
[Date "2023.04.11"]
[WhiteClock "0:00:02"]
[BlackClock "0:00:21"]

1. e4 {[%clk 0:02:56]}  c5 {[%clk 0:02:58]} 2. Nf3 {[%clk 0:02:55]}  g6 {[%clk 0:02:58]} 3. d4 {[%clk 0:02:54]}  cxd4 {[%clk 0:02:58]} 4. Qxd4 {[%clk 0:02:46]}  Nf6 {[%clk 0:02:58]} 5. Nc3 {[%clk 0:02:46]}  Nc6 {[%clk 0:02:58]} 6. Qa4 {[%clk 0:02:46]}  d6 {[%clk 0:02:58]} 7. e5 {[%clk 0:02:47]}  dxe5 {[%clk 0:02:59]} 8. Nxe5 {[%clk 0:02:47]}  Bg7 {[%clk 0:03:00]} 9. Bb5 {[%clk 0:02:43]}  O-O {[%clk 0:03:00]} 10. Nxc6 {[%clk 0:02:42]}  bxc6 {[%clk 0:03:00]} 11. Bxc6 {[%clk 0:02:42]}  Rb8 {[%clk 0:03:01]} 12. O-O {[%clk 0:02:43]}  Qc7 {[%clk 0:02:59]} 13. h3 {[%clk 0:02:30]}  Rb6 {[%clk 0:02:38]} 14. Bf3 {[%clk 0:02:25]}  Bb7 {[%clk 0:02:35]} 15. Bxb7 {[%clk 0:02:19]}  Qxb7 {[%clk 0:02:30]} 16. Qf4 {[%clk 0:01:56]}  Rc8 {[%clk 0:02:23]} 17. Re1 {[%clk 0:01:48]}  Rxc3 {[%clk 0:01:54]} 18. bxc3 {[%clk 0:01:41]}  Nd5 {[%clk 0:01:54]} 19. Qe4 {[%clk 0:00:54]}  Bxc3 {[%clk 0:01:46]} 20. Be3 {[%clk 0:00:42]}  Re6 {[%clk 0:01:27]} 21. Qf3 {[%clk 0:00:36]}  Bxa1 {[%clk 0:01:01]} 22. c4 {[%clk 0:00:19]}  Bc3 {[%clk 0:00:51]} 23. cxd5 {[%clk 0:00:18]}  Rf6 {[%clk 0:00:49]} 24. Qe2 {[%clk 0:00:09]}  Bxe1 {[%clk 0:00:49]} 25. Qxe1 {[%clk 0:00:10]}  Qxd5 {[%clk 0:00:49]} 26. Qb4 {[%clk 0:00:10]}  Qd1+ {[%clk 0:00:45]} 27. Kh2 {[%clk 0:00:09]}  Qd6+ {[%clk 0:00:46]} 28. Qxd6 {[%clk 0:00:08]}  Rxd6 {[%clk 0:00:47]} 29. Bxa7 {[%clk 0:00:08]}  Ra6 {[%clk 0:00:47]} 30. Be3 {[%clk 0:00:09]}  Rxa2 {[%clk 0:00:48]} 31. Kg3 {[%clk 0:00:10]}  e5 {[%clk 0:00:47]} 32. Kf3 {[%clk 0:00:10]}  f5 {[%clk 0:00:48]} 33. g4 {[%clk 0:00:10]}  Kf7 {[%clk 0:00:48]} 34. Bg5 {[%clk 0:00:07]}  Ke6 {[%clk 0:00:47]} 35. Bh4 {[%clk 0:00:06]}  Ra3+ {[%clk 0:00:37]} 36. Kg2 {[%clk 0:00:06]}  f4 {[%clk 0:00:35]} 37. Bg5 {[%clk 0:00:06]}  Kd5 {[%clk 0:00:35]} 38. Bf6 {[%clk 0:00:04]}  Ke4 {[%clk 0:00:34]} 39. Be7 {[%clk 0:00:03]}  Rb3 {[%clk 0:00:31]} 40. Bh4 {[%clk 0:00:03]}  h5 {[%clk 0:00:31]} 41. gxh5 {[%clk 0:00:02]}  gxh5 {[%clk 0:00:32]} 42. Bg5 {[%clk 0:00:03]}  Kf5 {[%clk 0:00:32]} 43. Bh4 {[%clk 0:00:03]}  e4 {[%clk 0:00:30]} 44. Be7 {[%clk 0:00:03]}  Rb2 {[%clk 0:00:30]} 45. Bc5 {[%clk 0:00:03]}  Rc2 {[%clk 0:00:29]} 46. Bd4 {[%clk 0:00:03]}  h4 {[%clk 0:00:28]} 47. Kf1 {[%clk 0:00:02]}  Rd2 {[%clk 0:00:24]} 48. Bc5 {[%clk 0:00:02]}  Ke6 {[%clk 0:00:21]} 0-1


[Site "https://www.chess.com"]

[Event "Titled Tuesday Blitz April 11 Early 2023"]
[White "Dobre, Claudiu-Cristian"]
[Black "Akylbek2021"]
[WhiteFideId "1211854"]
[WhiteElo "2207"]
[BlackElo "2341"]
[Result "0-1"]
[Round "09"]
[TimeControl "180+2"]
[Date "2023.04.11"]
[WhiteClock "0:00:01"]
[BlackClock "0:00:09"]

1. e4 {[%clk 0:03:00]}  c5 {[%clk 0:02:59]} 2. b3 {[%clk 0:03:00]}  Nc6 {[%clk 0:02:58]} 3. Bb2 {[%clk 0:02:58]}  Nf6 {[%clk 0:02:57]} 4. e5 {[%clk 0:02:46]}  Nd5 {[%clk 0:02:57]} 5. Nf3 {[%clk 0:02:47]}  a6 {[%clk 0:02:42]} 6. c4 {[%clk 0:01:52]}  Nc7 {[%clk 0:02:40]} 7. Bd3 {[%clk 0:01:30]}  Ne6 {[%clk 0:02:33]} 8. Be4 {[%clk 0:01:30]}  g6 {[%clk 0:02:31]} 9. Nc3 {[%clk 0:01:22]}  Bg7 {[%clk 0:02:23]} 10. Ne2 {[%clk 0:01:06]}  O-O {[%clk 0:02:14]} 11. O-O {[%clk 0:00:59]}  Rb8 {[%clk 0:01:42]} 12. Rb1 {[%clk 0:00:54]}  b5 {[%clk 0:01:42]} 13. cxb5 {[%clk 0:00:28]}  axb5 {[%clk 0:01:42]} 14. Bxc6 {[%clk 0:00:28]}  dxc6 {[%clk 0:01:42]} 15. d4 {[%clk 0:00:28]}  cxd4 {[%clk 0:01:38]} 16. Nexd4 {[%clk 0:00:28]}  Nxd4 {[%clk 0:01:24]} 17. Nxd4 {[%clk 0:00:28]}  Qb6 {[%clk 0:01:13]} 18. b4 {[%clk 0:00:17]}  Rd8 {[%clk 0:00:58]} 19. Qd2 {[%clk 0:00:09]}  Bxe5 {[%clk 0:00:50]} 20. Rbd1 {[%clk 0:00:09]}  Bg4 {[%clk 0:00:49]} 21. f3 {[%clk 0:00:08]}  Be6 {[%clk 0:00:23]} 22. Qe3 {[%clk 0:00:08]}  Rd5 {[%clk 0:00:23]} 23. Rd2 {[%clk 0:00:05]}  Rbd8 {[%clk 0:00:21]} 24. Rfd1 {[%clk 0:00:05]}  Bc8 {[%clk 0:00:15]} 25. f4 {[%clk 0:00:05]}  Bf6 {[%clk 0:00:14]} 26. h3 {[%clk 0:00:05]}  c5 {[%clk 0:00:14]} 27. bxc5 {[%clk 0:00:05]}  Qxc5 {[%clk 0:00:15]} 28. Kf2 {[%clk 0:00:06]}  Bh4+ {[%clk 0:00:14]} 29. g3 {[%clk 0:00:06]}  Bf6 {[%clk 0:00:14]} 30. h4 {[%clk 0:00:06]}  Bg4 {[%clk 0:00:14]} 31. Nf3 {[%clk 0:00:06]}  Qxe3+ {[%clk 0:00:11]} 32. Kxe3 {[%clk 0:00:06]}  Bxf3 {[%clk 0:00:11]} 33. Rxd5 {[%clk 0:00:04]}  Rxd5 {[%clk 0:00:11]} 34. Rxd5 {[%clk 0:00:03]}  Bxd5 {[%clk 0:00:12]} 35. Bc1 {[%clk 0:00:03]}  Bxa2 {[%clk 0:00:11]} 36. Ke4 {[%clk 0:00:03]}  b4 {[%clk 0:00:11]} 37. g4 {[%clk 0:00:02]}  b3 {[%clk 0:00:11]} 38. g5 {[%clk 0:00:02]}  b2 {[%clk 0:00:11]} 39. gxf6 {[%clk 0:00:01]}  bxc1=Q {[%clk 0:00:09]} 0-1


[Site "https://www.chess.com"]